Cogmind - Beta 17 @@@ ROGUE MODE // 2026.07.22 @ 14:46:48 Player: winnking222 Result: Self-destructed Performance ------------- Evolutions (4) 2000 Regions Visited (6) 1200 Robots Destroyed (48) 240 Value Destroyed (1284) 1284 Prototype IDs (23) 460 Alien Tech Used (0) 0 Bonus (766) 766 TOTAL SCORE: 5950 Bonus ------- Registered with UFD 300 Met Optimus in HQ 500 Friendly Fire -34 Cogmind --------- Core Integrity 778/850 Matter 247/300 Energy 160/160 System Corruption 1% Temperature Cool (0) Movement Treading (250) Ox1 Location -6/Factory Parts ------- > --- POWER (1) -------- Light Fission Core > --- PROPULSION (5) --- Improved Treads Improved Treads Spiked Treads Spiked Treads Armored Treads > --- UTILITY (7) ------ Huge Storage Unit Structural Scanner Advanced Sensor Array Improved Signal Interpreter Improved Heavy Armor Plating Hacking Suite > --- WEAPON (2) ------- Heavy Machine Gun Great Axe > --- INVENTORY (25) --- Armored Wheel Armored Wheel Improved Hover Unit Improved Hover Unit Gravmag System Gravmag System Nuclear Pulse Thruster Medium Storage Unit Experimental Sensor Array Transmission Jammer Advanced ECM Suite Improved Medium Armor Plating Gun Armor Hacking Suite A0-MCA's Component Scanner Thief Drone Bay (3/3) Thermic Laser Autogun Coil Gun Improved Heavy Machine Gun Long-range Missile Launcher Datajack Plasma Cutter Peak State ------------ > --- POWER ------------ Light Fission Core > --- PROPULSION ------- Improved Treads Improved Treads Spiked Treads Spiked Treads Armored Treads > --- UTILITY ---------- Huge Storage Unit Structural Scanner Advanced Sensor Array Improved Signal Interpreter Improved Heavy Armor Plating Hacking Suite > --- WEAPON ----------- Heavy Machine Gun Improved Heavy Machine Gun > --- INVENTORY -------- Armored Wheel Armored Wheel Improved Hover Unit Improved Hover Unit Gravmag System Gravmag System Nuclear Pulse Thruster Medium Storage Unit Experimental Sensor Array Advanced ECM Suite Improved Medium Armor Plating Gun Armor Hacking Suite A0-MCA's Component Scanner Thief Drone Bay Thermic Laser Autogun Coil Gun Long-range Missile Launcher Datajack Plasma Cutter Great Axe [Rating: 59] Favorites ----------- Power Subdweller Power Source Engine Subdweller Power Source Power Core Nuclear Core Propulsion Compact Wheel Treads Light Treads Wheel Compact Wheel Utility Humpback Device Structural Scanner Storage Humpback Processor Improved Signal Interpreter Hackware Hacking Suite Protection Improved Light Armor Plating Weapon Autogun Energy Gun Field Laser Energy Cannon Heavy Particle Cannon Ballistic Gun Autogun Ballistic Cannon Flak Cannon Special Weapon Plasma Cutter Slashing Weapon Great Axe Build | -11 -10 -10 -10 -9 -9 -6 ------- Run | Yrd Mat Min Sub Rec Scr Fac Slots Evolved 8 | . . . . . . 8 Power . | . . . . . . . Propulsion 3 | . . . . . . 3 Utility 5 | . . . . . . 5 Weapon . | . . . . . . . Parts Attached 55 | 6 6 6 16 3 4 14 Power 9 | 1 2 2 2 . 1 1 Engine 6 | 1 2 . 2 . 1 . Core 3 | . . 2 . . . 1 Reactor . | . . . . . . . Propulsion 15 | 2 . . 5 3 1 4 Treads 8 | 2 . . 2 . . 4 Leg . | . . . . . . . Wheel 7 | . . . 3 3 1 . Hover . | . . . . . . . Flight . | . . . . . . . Utility 15 | 1 2 2 4 . 1 5 Device 6 | . 1 1 2 . . 2 Storage 4 | 1 1 . 1 . 1 . Processor 1 | . . . . . . 1 Hackware 1 | . . . . . . 1 Protection 3 | . . 1 1 . . 1 Artifact . | . . . . . . . Weapon 16 | 2 2 2 5 . 1 4 Energy Gun . | . . . . . . . Energy Cannon 2 | . . 1 1 . . . Ballistic Gun 11 | 2 2 . 4 . 1 2 Ballistic Cannon 1 | . . 1 . . . . Launcher . | . . . . . . . Special Weapon 1 | . . . . . . 1 Impact Weapon . | . . . . . . . Slashing Weapon 1 | . . . . . . 1 Piercing Weapon . | . . . . . . . Special Melee Weapon . | . . . . . . . Unidentified Prototypes 3 | . . 1 1 . . 1 Parts Lost 3 | . 2 . 1 . . . Power 1 | . 1 . . . . . Propulsion . | . . . . . . . Utility 1 | . 1 . . . . . Weapon 1 | . . . 1 . . . Highest Loss Streak 1 | . 1 . 1 . . . To Critical Strikes . | . . . . . . . Average Backups 19 | 4 9 14 16 27 30 20 Power . | . . . . 1 1 . Propulsion 4 | 2 3 2 2 8 8 6 Utility 7 | . 1 6 7 9 10 7 Weapon 6 | . 4 6 6 8 8 4 Tool/Special . | . . . . . . . Unused Backups 39 | . 1 2 6 . 11 19 Power 1 | . . . 1 . . . Propulsion 11 | . . 1 2 . 2 6 Utility 12 | . . . 1 . 3 8 Weapon 14 | . 1 1 2 . 6 4 Tool/Special 1 | . . . . . . 1 Average Slot Usage (%) 85 | . 91 99 94 80 63 90 Engine 11 | . 13 3 12 14 14 2 Core 1 | . . 10 1 . . 3 Treads 16 | . 28 28 22 1 . 32 Wheel 11 | . . . 5 26 28 . Device 2 | . 6 7 1 . . 12 Storage 13 | . 14 14 14 14 14 6 Protection 4 | . . 5 8 . . 5 Energy Cannon 5 | . . . 11 11 . . Ballistic Gun 9 | . 28 27 6 . 6 12 Ballistic Cannon 4 | . . . 8 11 . . Peak Build Rating 59 | 6 11 20 27 20 21 59 Average Rating 20 | 5 9 17 19 17 15 51 On Entrance 12 | . 6 9 16 20 14 21 Avg Prop Armor Cover (%) 9 | . . . 8 11 . . Naked Turns . | . . . . . . . Heaviest Build 217 | 12 33 40 217 217 205 113 Greatest Support 106 | 40 40 40 43 32 32 106 Greatest Overweight (x) 13 | . . . 10 13 6 3 Average Overweight (x) 3 | . . . 2 6 4 1 Largest Inventory Capacity 35 | 8 15 15 35 35 35 25 Average Capacity 23 | 7 13 15 21 35 31 25 Most Carried 35 | 5 12 15 23 35 35 25 Average Carried 20 | 4 9 14 16 27 30 20 Final Capacity 35 | 8 15 15 35 35 25 25 Final Carried 35 | 5 12 15 23 35 25 23 Transmogrified Parts 3 | . . . 3 . . . Integrity Recovered 70 | . . . 70 . . . Class Distribution -------------------- 50% | Mutant 38% | Hauler-Mutant 7% | Derelict-Skirmisher Dominant Class ---------------- Mutant | -10/Materials Mutant | -10/Mines Mutant | -10/Subcaves Hauler-Mutant | -9/Recycling Hauler-Mutant | -9/Scraptown Derelict-Skirmisher | -6/Factory Resources | -11 -10 -10 -10 -9 -9 -6 ----------- Run | Yrd Mat Min Sub Rec Scr Fac Matter Collected 2196 | 368 205 290 822 121 50 340 Remotely . | . . . . . . . Salvage Created 1797 | 211 225 217 381 492 . 271 Parts 105 | 20 11 13 32 16 . 13 Haulers Intercepted 1 | . 1 . . . . . Recyclers Shooed 2 | . . 1 . 1 . . Parts Field Recycled . | . . . . . . . Retrieved Matter . | . . . . . . . Parts Self-Destructed 16 | . . . 16 . . . Prevented . | . . . . . . . Parts Restored . | . . . . . . . Kills | -11 -10 -10 -10 -9 -9 -6 ------- Run | Yrd Mat Min Sub Rec Scr Fac Combat Hostiles Destroyed 29 | . 5 7 11 1 . 5 Guns 20 | . 5 7 3 . . 5 Cannons 8 | . . . 7 1 . . Classes Destroyed 13 | 2 4 3 2 . . 2 Tunneler 9 | 9 . . . . . . Hauler 1 | . 1 . . . . . Recycler 6 | 1 . . . 5 . . Operator 1 | . 1 . . . . . Turret 1 | . . . 1 . . . Watcher 1 | . . . . . . 1 Swarmer 7 | . 2 3 2 . . . Grunt 9 | . 3 1 2 . . 3 Sentry 3 | . . 2 . 1 . . Programmer 2 | . . . . . . 2 Subdweller 7 | . . . 7 . . . Zionite 1 | . . 1 . . . . Assembled 1 | . . 1 . . . . Best Kill Streak 4 | 3 4 3 3 4 . 3 Combat Bots Only 3 | . 2 3 2 1 . 3 Max Kills in Single Turn 1 | 1 1 1 1 1 . 1 Gunslinging . | . . . . . . . Exploded . | . . . . . . . Melee . | . . . . . . . Uniques/NPCs Destroyed . | . . . . . . . Combat | -11 -10 -10 -10 -9 -9 -6 -------- Run | Yrd Mat Min Sub Rec Scr Fac Hostile Shots Fired 205 | . 30 22 114 . . 39 Missed 71 | . 9 5 47 . . 10 Hits 134 | . 21 17 67 . . 29 Projectile 134 | . 21 17 67 . . 29 Critical Strikes 1 | . . 1 . . . . Damage Taken 1785 | . 207 172 886 1 . 519 Core 203 | . 21 14 96 . . 72 Absorbed by Shields 61 | . 61 . . . . . Ignored by Resistances 49 | . . . 49 . . . Core Remaining (%) 73 | 100 . . . . 47 . Volleys Fired 179 | 18 20 28 76 9 . 28 Largest 2 | 2 2 2 2 2 . 2 Hottest 150 | 40 46 75 150 112 . 56 Shots Fired 326 | 36 40 47 129 18 . 56 Gun 220 | 36 40 36 52 . . 56 Cannon 106 | . . 11 77 18 . . Launcher . | . . . . . . . Special . | . . . . . . . Kinetic 253 | 36 40 37 75 9 . 56 Thermal 73 | . . 10 54 9 . . Explosive . | . . . . . . . Electromagnetic . | . . . . . . . Robot Hit Streak 22 | 8 9 12 22 14 . 10 Robot Miss Streak 8 | 2 8 2 6 2 . 3 Penetration Max . | . . . . . . . Secondary Targets 1 | . . 1 . . . . Max Gunslinging Chain 1 | . . 1 . . . . Shots Hit Robots 185 | 26 20 24 68 11 . 36 Core Hits 98 | 10 9 11 36 17 . 15 Critical Kills 3 | . . . 2 . . 1 Critical Parts Destroyed 1 | . . . . . . 1 Critical Strikes 4 | . . . 2 . . 2 Meltdown 2 | . . . 2 . . . Destroy 2 | . . . . . . 2 Melee Attacks 1 | . . . . . . 1 Impact . | . . . . . . . Slashing 1 | . . . . . . 1 Piercing . | . . . . . . . Sneak Attacks . | . . . . . . . Combat Hostiles . | . . . . . . . Follow-up Attacks . | . . . . . . . Damage Inflicted 3716 | 343 329 360 1566 323 . 795 Guns 2053 | 343 329 353 233 . . 795 Cannons 1653 | . . . 1333 320 . . Explosions . | . . . . . . . Melee . | . . . . . . . Ramming 10 | . . 7 . 3 . . Kinetic 2831 | 343 329 353 866 145 . 795 Thermal 875 | . . . 700 175 . . Explosive . | . . . . . . . Electromagnetic . | . . . . . . . Impact . | . . . . . . . Slashing . | . . . . . . . Piercing . | . . . . . . . Highest Corruption 1 | . 1 1 1 1 . 1 Average Corruption 1 | . 1 1 1 1 . 1 Corruption Purged . | . . . . . . . Corruption Blocked . | . . . . . . . Effects 67 | . 2 9 36 13 . 7 Message Errors 16 | . . 1 9 5 . 1 Matter Fused 14 | . 2 3 6 1 . 2 Heat Flow Errors 10 | . . 1 5 3 . 1 Energy Discharges 8 | . . 1 5 1 . 1 Parts Rejected 1 | . . . 1 . . . Data Loss (minor) 12 | . . 1 6 3 . 2 Data Loss (major) 1 | . . . 1 . . . Misfires 4 | . . 2 2 . . . Weapon Failures 1 | . . . 1 . . . Overload Shots . | . . . . . . . Overflow Damage . | . . . . . . . Projectiles . | . . . . . . . Explosions . | . . . . . . . Melee . | . . . . . . . Knockbacks 16 | . . 1 11 4 . . Impact 1 | . . 1 . . . . Kinetic 14 | . . . 11 3 . . Secondary 1 | . . . . 1 . . Self-Inflicted Damage 1 | . . . . 1 . . Shots . | . . . . . . . Rammed 2 | . . 1 . 1 . . Targets Rammed 2 | . . 1 . 1 . . Kicked . | . . . . . . . Crushed . | . . . . . . . Highest Temperature 272 | . 24 165 250 183 . 272 Average Temperature 47 | . 9 45 88 48 . 44 Received Heat Transfer 528 | . 30 27 330 . . 141 Siege Activations . | . . . . . . . Martial Activations . | . . . . . . . Shielding Activations . | . . . . . . . Robots Disrupted . | . . . . . . . Combat Hostiles . | . . . . . . . Robots Corrupted . | . . . . . . . Combat Hostiles . | . . . . . . . Parts Fried . | . . . . . . . Impact Corruptions . | . . . . . . . Robots Melted 2 | . . . 2 . . . Combat Hostiles 2 | . . . 2 . . . Parts Melted 3 | . . . 3 . . . Heat Transferred 1295 | . . . 1036 259 . . Parts Sabotaged . | . . . . . . . Parts Stolen . | . . . . . . . Parts Stripped . | . . . . . . . Power Chain Reactions . | . . . . . . . Alert | -11 -10 -10 -10 -9 -9 -6 ------- Run | Yrd Mat Min Sub Rec Scr Fac Maximum Alert Level . | . . . . . . . Low Security (%) 100 | 100 100 100 . 100 . 100 Level 1 . | . . . . . . . Level 2 . | . . . . . . . Level 3 . | . . . . . . . Level 4 . | . . . . . . . Level 5 . | . . . . . . . High Security . | . . . . . . . Max Security . | . . . . . . . Peak Influence 150 | 15 80 77 . 115 . 150 Initial . | . . . . . . . Average 17 | . 14 13 . 19 . 29 Influence Increases 1121 | 50 165 155 200 217 . 334 Destroy 0b10 Robot/C 440 | . 100 120 100 20 . 100 Destroy 0b10 Robot/NC 95 | 50 10 . . 30 . 5 Destroy Leader 84 | . 22 20 10 . . 32 Allied During Kill 14 | . . 14 . . . . Successful Hack 47 | . 32 . . 15 . . Select Force Hacks 180 | . . . . 150 . 30 Disable Machine 15 | . . . . . . 15 Anti-Garrison Action 150 | . . . . . . 150 Destroy Structure 6 | . 1 1 . 2 . 2 Lose Combat Pursuer 90 | . . . 90 . . . Influence Decreases 1101 | 50 165 155 200 217 . 314 Time Decay 1061 | 50 145 135 200 217 . 314 Lost Part 20 | . 20 . . . . . Lost Ally 20 | . . 20 . . . . Squads Dispatched 9 | . . 1 . . . 8 Investigation 5 | . . 1 . . . 4 Extermination 2 | . . . . . . 2 Reinforcement . | . . . . . . . Assault 2 | . . . . . . 2 Garrison . | . . . . . . . Intercept . | . . . . . . . Searches Triggered . | . . . . . . . Construction Impeded . | . . . . . . . Haulers Reinforced . | . . . . . . . Active Scanning Responses . | . . . . . . . Cargo Convoy Interrupts . | . . . . . . . Stealth | -11 -10 -10 -10 -9 -9 -6 --------- Run | Yrd Mat Min Sub Rec Scr Fac Distress Signals 2 | . 2 . . . . . Communications Jammed . | . . . . . . . Distress Signals . | . . . . . . . Times Spotted 46 | . 11 7 19 . . 9 Peak Tracking Total 4 | . 4 3 4 . . 3 Tactical Retreats 5 | . . . 5 . . . Traps | -11 -10 -10 -10 -9 -9 -6 ------- Run | Yrd Mat Min Sub Rec Scr Fac Traps Triggered 1 | . 1 . . . . . Indirectly . | . . . . . . . Trap Hack Attempts . | . . . . . . . Triggered . | . . . . . . . Disarmed . | . . . . . . . Reprogrammed . | . . . . . . . Reused . | . . . . . . . Traps Extracted . | . . . . . . . Installed . | . . . . . . . Triggered . | . . . . . . . Machines | -11 -10 -10 -10 -9 -9 -6 ---------- Run | Yrd Mat Min Sub Rec Scr Fac Machines Disabled 4 | . . . 2 . . 2 Max in Single Turn 1 | . . . 1 . . 1 Garrison Access 1 | . . . . . . 1 Machines Repaired . | . . . . . . . Machines Dismantled 1 | . . . . . . 1 Machines Sabotaged . | . . . . . . . Overloaded Fab Kills . | . . . . . . . Hacking | -11 -10 -10 -10 -9 -9 -6 --------- Run | Yrd Mat Min Sub Rec Scr Fac Machines Accessed 33 | . 6 3 2 10 5 7 Terminals 12 | . 6 . . 5 . 1 Fabricators 1 | . . . . . . 1 Repair Stations . | . . . . . . . Recycling Units 8 | . . . . 5 . 3 Scanalyzers 1 | . . . . . . 1 Garrison Access 1 | . . . . . . 1 Total Hacks 91 | . 22 3 6 20 27 13 Successful 71 | . 16 3 6 15 27 4 Failed 19 | . 6 . . 5 . 8 Catastrophic . | . . . . . . . Database Lockouts 1 | . . . . . . 1 Manual 44 | . 21 . . 18 . 5 Terminals 39 | . 22 . . 15 . 2 Fabricators 2 | . . . . . . 2 Repair Stations . | . . . . . . . Recycling Units 10 | . . . . 5 . 5 Scanalyzers 2 | . . . . . . 2 Garrison Access 2 | . . . . . . 2 Terminal Hacks 41 | . 3 3 6 2 27 . Record 31 | . . . 5 . 26 . Part Schematic 2 | . 2 . . . . . Open Door 3 | . . 3 . . . . Alert Level 1 | . . . . 1 . . Locate Traps 1 | . 1 . . . . . Registered Prototypes 1 | . . . . 1 . . Proto ID Catalog 2 | . . . 1 . 1 . Fabricator Hacks . | . . . . . . . Repair Station Hacks . | . . . . . . . Recycling Unit Hacks . | . . . . . . . Scanalyzer 1 | . . . . . . 1 Retrieve Study 1 | . . . . . . 1 Garrison Access Hacks . | . . . . . . . Unauthorized Hacks 29 | . 13 . . 13 . 3 Terminals 21 | . 13 . . 8 . . Track 2 | . 2 . . . . . Assimilate 1 | . 1 . . . . . Botnet 5 | . 2 . . 3 . . Operators 3 | . 3 . . . . . Skim 10 | . 5 . . 5 . . Fabricators . | . . . . . . . Repair Stations . | . . . . . . . Recycling Units 8 | . . . . 5 . 3 Tunnel 6 | . . . . 5 . 1 Fedlink 2 | . . . . . . 2 Scanalyzers . | . . . . . . . Garrison Access . | . . . . . . . Data Cores Recovered 1 | . 1 . . . . . Used . | . . . . . . . Hacking Detections 14 | . 5 . . 4 . 5 Full Trace Events 1 | . . . . . . 1 Feedback Events . | . . . . . . . Feedback Blocked . | . . . . . . . Robot Schematics Acquired . | . . . . . . . Robots Built . | . . . . . . . Authchips . | . . . . . . . Time . | . . . . . . . Total Robot Build Rating . | . . . . . . . Part Schematics Acquired 2 | . 2 . . . . . Parts Built . | . . . . . . . Authchips . | . . . . . . . Time . | . . . . . . . Total Part Build Rating . | . . . . . . . Part Studies Acquired 1 | . . . . . . 1 Parts Repaired . | . . . . . . . Time . | . . . . . . . Parts Recycled . | . . . . . . . Recycled Matter . | . . . . . . . Retrieved Matter . | . . . . . . . Retrieved Components . | . . . . . . . Parts Scanalyzed . | . . . . . . . Part Schematics Acquired . | . . . . . . . Parts Damaged . | . . . . . . . Bothacking | -11 -10 -10 -10 -9 -9 -6 ------------ Run | Yrd Mat Min Sub Rec Scr Fac Used RIF Installer . | . . . . . . . Robots Hacked . | . . . . . . . Non-combat . | . . . . . . . Combat . | . . . . . . . Robot Hacks Applied . | . . . . . . . Relay Couplers Released 1 | . . . . . . 1 Machine Destruction 1 | . . . . . . 1 Fabnet Peak Effective % . | . . . . . . . Robots Rewired . | . . . . . . . Allies Hacked . | . . . . . . . Hacks Repelled . | . . . . . . . Allies | -11 -10 -10 -10 -9 -9 -6 -------- Run | Yrd Mat Min Sub Rec Scr Fac Total Allies 2 | . . 2 . . . . Largest Group 2 | . . 2 . . . . Highest-Rated Group 44 | . . 44 . . . . Highest-Rated Ally 31 | . . 31 . . . . Initial UFD Resources 22 | . . . . . . 22 Total Orders . | . . . . . . . Ally Attacks 4 | . . 4 . . . . Total Damage 22 | . . 22 . . . . Kills . | . . . . . . . Allies Corrupted . | . . . . . . . Allies Melted . | . . . . . . . Intel | -11 -10 -10 -10 -9 -9 -6 ------- Run | Yrd Mat Min Sub Rec Scr Fac Active Infowar (turns) 1233 | . . . 2 . . 1231 Optics 2 | . . . 2 . . . Sensors 1091 | . . . . . . 1091 Structural 1231 | . . . . . . 1231 Robot Analysis Total . | . . . . . . . Derelict Logs Recovered 7 | . . 1 1 . 5 . Drone Launches . | . . . . . . . Drone Recoveries . | . . . . . . . Exploration | -11 -10 -10 -10 -9 -9 -6 ------------- Run | Yrd Mat Min Sub Rec Scr Fac Turns Passed 11975 | 648 859 924 4336 1559 2409 1240 Spaces Moved 5377 | 95 387 354 1913 786 1407 435 Core 8 | 8 . . . . . . Treads 2515 | 87 387 354 1254 . . 433 Legs . | . . . . . . . Wheels 2854 | . . . 659 786 1407 2 Hover . | . . . . . . . Flight . | . . . . . . . Fastest Speed 50 | 50 160 160 125 190 100 140 Average Speed 189 | 150 160 160 203 192 167 248 Slowest Speed 660 | 160 160 160 660 295 190 250 Overloaded Moves . | . . . . . . . Propulsion Burnouts . | . . . . . . . Robots Hopped . | . . . . . . . Potential Cave-ins . | . . . . . . . Cave-ins Triggered . | . . . . . . . Exploration Rate (%) 59 | 3 62 63 96 98 87 10 Regions Visited 6 Branch Regions 4 Pre-discovered Areas 13 | . 2 . 2 6 1 2 Known Exits Taken 2 | . . 1 1 . . . Unknown Exits Taken 4 | 1 1 . . 1 1 . Scrap Searched 17 | . . 1 5 . 11 . Spaces Dug 2 | . . 1 . . . 1 Terrain Destroyed 6 | . . 2 . 2 . 2 Melee 1 | . . . . . . 1 Projectile 5 | . . 2 . 2 . 1 AOE . | . . . . . . . Terrain Rammed . | . . . . . . . Walls Destroyed . | . . . . . . . Machines Disabled . | . . . . . . . Actions | -11 -10 -10 -10 -9 -9 -6 --------- Run | Yrd Mat Min Sub Rec Scr Fac Total 6862 | 564 595 674 2224 813 1465 527 Wait 1056 | 435 171 271 160 1 . 18 Move 5371 | 94 386 353 1912 785 1406 435 Hop . | . . . . . . . Pick Up 119 | 11 9 8 33 10 36 12 Fast Attach 4 | . 1 . 2 . 1 . Attach 26 | 6 1 1 4 . 3 11 Detach 5 | . . . . 2 . 3 Swap 39 | . 4 6 19 3 1 6 Drop 49 | . 3 6 18 . 17 5 Fire 179 | 18 20 28 76 9 . 28 Melee 1 | . . . . . . 1 Ram 1 | . . . . 1 . . Kick . | . . . . . . . Crush 1 | . . 1 . . . . Escape Stasis . | . . . . . . . Rewire 3 | . . . . 2 1 . Trap . | . . . . . . . Miscellaneous 8 | . . . . . . 8 Route ------- -11/Scrapyard -10/Materials (discovered 6 exits: *Mat x3 / *Min x2 / Sub) -10/Mines (discovered 2 exits: *Mat / *Sub) -10/Subcaves (discovered 3 exits: [*Mat x2] / *Rec) -9/Recycling (discovered 2 exits: *Fac / *Scr) -9/Scraptown (discovered 2 exits: *Fac x2) -6/Factory (discovered 4 exits: Fac x2 / *Low x2) History --------- Turn | Location | Event 9 | -11/Scrapyard | Discovered new exit (range 16) 649 | -11/Scrapyard | Entered Materials 650 | -10/Materials | Build established: Mutant 793 | -10/Materials | Discovered new exit (range 10) 926 | -10/Materials | Discovered new exit (range 5) 1020 | -10/Materials | Discovered new exit (range 15) 1149 | -10/Materials | Derelicts attacked the area 1199 | -10/Materials | Discovered new exit (range 8) 1337 | -10/Materials | Learned location of 1 exit from Recycling 1376 | -10/Materials | Identified exit to Materials 1403 | -10/Materials | Learned Storage trap positions 1419 | -10/Materials | Loaded intel: 11 trap records 1427 | -10/Materials | Learned Storage emergency access door positions 1429 | -10/Materials | Identified exit to Subcaves 1430 | -10/Materials | Learned location of Mines (-10) 1480 | -10/Materials | Learned Storage trap positions 1508 | -10/Materials | Entered Mines 1526 | -10/Mines | Found the Drone Emporium 1532 | -10/Mines | Found Prototype Device 1533 | -10/Mines | Identified Thief Drone Bay 1627 | -10/Mines | Discovered exit to Materials (range 13) 1636 | -10/Mines | Found a damaged Exp. Sensor Array with a note attached 1639 | -10/Mines | Found Prototype Device 1670 | -10/Mines | Met a Derelict shopkeep closing up shop 1878 | -10/Mines | Met a Derelict who couldn't figure out how to use a Trap Extractor 1994 | -10/Mines | Assembled infested the area 2292 | -10/Mines | Learned Materials interactive machine intel 2425 | -10/Mines | Discovered exit to Subcaves (range 4) 2432 | -10/Mines | Entered Subcaves 2584 | -10/Subcaves | Discovered new exit (range 16) 2705 | -10/Subcaves | Visited Clippyterm 2710 | -10/Subcaves | Identified exit to Recycling 2710 | -10/Subcaves | Learned 40 Factory zone layouts 2781 | -10/Subcaves | Discovered new exit (range 16) 2915 | -10/Subcaves | Learned location of Zion (-7) 2941 | -10/Subcaves | Visited 4L-MR0's lab 2964 | -10/Subcaves | Found Prototype Device 2965 | -10/Subcaves | Identified Sfc. Transmogrifier 3010 | -10/Subcaves | Found Gun Armor 3639 | -10/Subcaves | Met a Zionite searching for "candidates" 4393 | -10/Subcaves | Shifting Twisted Machinery released Spk. Treads 4410 | -10/Subcaves | Shifting Twisted Machinery released Battle Rifle 4459 | -10/Subcaves | A swath of the cavern ceiling suddenly collapsed 4646 | -10/Subcaves | Core integrity fell below 50% 5595 | -10/Subcaves | Build established: Hauler-Mutant 6768 | -10/Subcaves | Entered Recycling 6769 | -9/Recycling | Joined Warlord attack on 0b10 via Recycling 6769 | -9/Recycling | Identified exit to Factory 7617 | -9/Recycling | Learned Materials stockpile data 7669 | -9/Recycling | Learned Storage emergency access door positions 7804 | -9/Recycling | Learned location of 1 exit from Recycling 7850 | -9/Recycling | Learned 2 Materials zone layouts 7888 | -9/Recycling | Scanned before Scraplab entrance 8308 | -9/Recycling | Entered Scraplab 8324 | -9/Recycling | Discovered new exit (range 2) 8327 | -9/Recycling | Entered Scraptown 8327 | -9/Scraptown | System corruption cleaned by C-Scrubber 8536 | -9/Scraptown | Heard Great Nut preacher, LISTEN AND RECITE! 8595 | -9/Scraptown | Visited The Evicted 8609 | -9/Scraptown | Visited SPCMW 8650 | -9/Scraptown | Visited Spacefarers 8702 | -9/Scraptown | Scanned Subdweller tech in exchange for log data 8706 | -9/Scraptown | Learned location of Armory (-3) 8707 | -9/Scraptown | Learned location of 2 exits from Proximity Caves 8709 | -9/Scraptown | Learned Research non-interactive machine intel 8711 | -9/Scraptown | Learned location of 1 exit from Factory 8713 | -9/Scraptown | Learned location of 2 exits from Lower Caves 8736 | -9/Scraptown | Discovered new exit (range 11) 9212 | -9/Scraptown | Visited Assassins FH 9276 | -9/Scraptown | Visited Cyclists 9288 | -9/Scraptown | Visited Comm Corps 9305 | -9/Scraptown | Visited Bundlers 9425 | -9/Scraptown | Visited UFD Registry 9425 | -9/Scraptown | Registered with UFD as "Kinetislicer" 9469 | -9/Scraptown | Visited DA-N13 Charitable Foundation 9476 | -9/Scraptown | Found DCF Scrap (29 items) 9520 | -9/Scraptown | Visited Scrapoid Research Area 9563 | -9/Scraptown | Visited Science Testing Area 9599 | -9/Scraptown | Visited Research Penetration Think Tank 9639 | -9/Scraptown | Visited Scrap Suit Storage 9663 | -9/Scraptown | Visited Abandonware Association 9682 | -9/Scraptown | Learned abandonware demo "SHUTEYE.EXE" 9682 | -9/Scraptown | Learned abandonware demo "REBOOT5.EXE" 9717 | -9/Scraptown | Visited Junk Repository 9772 | -9/Scraptown | Visited Chapter 10 9817 | -9/Scraptown | Visited Science Guys 9886 | -9/Scraptown | Visited A0-MCA Data Center 9897 | -9/Scraptown | Given a D+ rating by A0-MCA 9900 | -9/Scraptown | Found A0-MCA's Component Scanner 10069 | -9/Scraptown | Entered Cyclist Reading Room 10225 | -9/Scraptown | Build established: Mutant 10655 | -9/Scraptown | Met Optimus 10655 | -9/Scraptown | Accepted into 0bPrime 10730 | -9/Scraptown | Discovered new exit (range 5) 10736 | -9/Scraptown | Entered Factory 10736 | -6/Factory | Evolved 8 slots: Propulsion x3, Utility x5 10737 | -6/Factory | Identified exit to Factory 10738 | -6/Factory | Identified exit to Lower Caves 11076 | -6/Factory | Loaded intel: 8 recycling unit locations 11310 | -6/Factory | Build established: Derelict-Skirmisher 11505 | -6/Factory | Discovered exit to Lower Caves (range 6) 11612 | -6/Factory | Central database locked down 11976 | -6/Factory | Learned location of Protoforge (-3) 11976 | -6/Factory | Self-destructed Last Messages --------------- \/ \/ \/ \/ \/ v3.71\/ UFD!MEMBER UFD!NETWORK<251> UFD!RESOURCES<36> 0bP!READINESS 0bP!PRIORITY_MSG_OPTIMUS: Excellent work, Kinetislicer. It looks like we can count on your support, so I've greenlit the next stage of our plans. Preparations on our end are also smooth, and we're sending out 0bPrime's best to compound your efforts as we near the goal. We need you to make your way to 0b10's Protoforge, expanding Fedlink as widely as possible along the way. I'll let you know more later. We are one. UFD!SANITIZING UFD!... World map updated: -3/Protoforge. 11976_ ALERT: Suspicious activity at Recycling Unit F007. Dispatching Investigation squad. Map ----- +----------------------------------------------------+ | ?????????????????????????"" # | | ?????????????????????????"" # ## | | ?????????????????????????"" # #? | | ????????????????????????? # #? | | ??????????????????# ?????????????? | | ?????????????############?????????????? | | ?????????????# #??????????????? | | ??????######## """"""" #??????????????? | | ??????# # """"""" #??????????????? | | ??????# # """"""" #??????????????? | | #######""" # """"""" ########???????? | | # ##"Y # ########???????? | | # ##""" # # + ?? | | # ## # # #####/## ?? | | # #######+########+## # # ?? | | # + gb + =# ?? | | # # ##### g ## " " ##?? | | # # #?### ## "Y" ##?? | | # # #??## ## """ ##?? | | # # #??## ## #### | | ###### #??## ############ | | ????## ##### #### # ## | | ????## ##############+#### # ## | | ????## ## """"""" # + # [ ## | | ????## ## """Y""" # ! "" # # ! ## | | ????## ## @ # """# ##+#######"" | | ????## ## ! # ! S"# #######"" | | ????## ########+### # #######"" | | ????## + # #######"" | | ????## ####+##### + | | ###### #### ##### ###### | | ###### #### ##### ###### | | # # ##??## | | # # # ?? # | | # # ! # ?? # | | # # | # ?? # | | # + # ?? # | | # # + ? # | | # # # * # | | # # ######################### # # | | # # # ! ############### # # | | ###### # ###########??## # # | | # + + > ###########??## ###### | | # # # # # ?? # ###### | | # ? # #####+##### # ?? # ##T ## | | # ?? # ##### ##### # ?? # | | ???? # ##### ##?## = # ?? + | | ???? # ##### ##?## ![= # ?? # | | ???? # ##?## !*] # ?? # | | ???? ### ####?## # ?? # | +----------------------------------------------------+ Best States ------------- Heat Dissipation 37 Energy Generation 18 Energy Capacity 265 Matter Stores 300 Matter Capacity 300 Sight Range 16 Robot Scan Range 16 Terrain Scan Density 10 Armor Coverage 600 Resistance: TH 10 Evasion (%) 50 Recoil Reduction 5 Offensive Hacking 10 Item Schematics ----------------- Hcp. Storage Unit | -10/Materials | Hacked Med. Storage Unit | -10/Materials | Hacked Robot Schematics ------------------ None Fabricated ------------ Nothing Repaired ---------- Nothing Studied --------- Arm. Wheel | -6/Factory | Hacked Alien Tech Used ----------------- None Achievements -------------- None Challenges ------------ None Game ------ Seed ControlNodeSource Manual? 0 Play Time 01:00:02 Cumulative 215.3 hours Start 2026.07.21 @ 16:32:20 End 2026.07.22 @ 14:46:48 Sessions 5 Manual Loads 0 Difficulty Rogue Special Mode None Game No. 297 Rogue 297 Adventurer 0 Explorer 0 Win Type - Total 3 Types 2/0/0/1/0/0/0/0/0/0 Lore% 74 Gallery% 69 Achievement% 57 Wizard Run 0 Options --------- Layout 1 ASCII 0 Keyboard 0 Movement Mouse Keybinds 0 Fullscreen 1 Font 24/Smallcaps Map View 50x35 Zoom Use 0% Tactical HUD 1 Map Filters NONE Filters NONE Steam 1 RUN: eec7ea1c-a21f-4901-a895-f424743139e8